bitfinex-derivatives/quotes_ETHF0:USTF0_20250824
["timestamp","ask_amount","ask_price","bid_price","bid_amount"]
[1756062428744,0.6265,4943.2,4942.8,0.5169]
[1756062428945,0.3391,4943.6,4942.9,0.5169]
[1756062429145,0.2218,4943.7,4943.6,0.2886]
[1756062429346,0.5154,4944.1,4944.0,0.3753]
[1756062429653,0.8623,4944.1,4944.0,1.2853]
[1756062429949,0.1446,4944.1,4944.0,1.2853]
[1756062430153,1.0841,4944.1,4944.0,1.2853]
[1756062431153,1.0841,4944.1,4944.0,1.0657]
[1756062431360,1.3062,4944.1,4944.0,1.0657]
[1756062435659,1.3062,4943.8,4943.7,0.9241]
[1756062436453,1.3062,4943.8,4943.7,0.588]
[1756062436658,1.0841,4943.4,4943.3,1.0657]
[1756062436859,1.71089,4943.4,4943.3,0.9241]
[1756062437053,0.0202,4943.9,4942.8,0.2196]
[1756062437054,0.5232,4942.9,4942.8,0.7365]
[1756062437259,1.0841,4942.9,4942.8,1.0726]
[1756062437652,1.3062,4942.9,4942.8,1.0657]
[1756062438449,1.3062,4942.9,4942.8,0.9241]
[1756062439452,1.0841,4942.9,4942.8,1.0657]
[1756062439652,1.0841,4942.9,4942.8,1.2853]
[1756062440556,1.3062,4942.9,4942.8,1.0657]
[1756062441264,1.3062,4942.9,4942.8,0.588]
[1756062441465,1.3062,4942.9,4942.8,0.9241]
[1756062441765,1.0841,4942.9,4942.8,1.2853]
[1756062442863,0.5154,4942.9,4942.8,1.2853]
[1756062443367,0.5154,4942.9,4942.8,1.69003]
[1756062443562,0.1446,4942.9,4942.8,1.2853]
[1756062444367,0.745,4942.9,4942.8,1.2853]
[1756062444661,1.0841,4942.9,4942.8,1.2853]
[1756062444866,0.5154,4942.9,4942.8,1.2853]
[1756062445969,0.3664,4942.9,4942.8,1.2853]
[1756062446672,0.7375,4942.9,4942.8,1.0657]
[1756062446871,1.3062,4942.9,4942.8,0.9241]
[1756062447569,0.40463,4944.0,4942.9,0.7586]
[1756062447771,1.2836,4944.0,4943.9,0.8963]
[1756062447968,1.0725,4944.0,4943.9,1.53475174]
[1756062451166,0.7809,4945.1,4944.1,0.7584]
[1756062451370,0.1481,4944.3,4944.2,0.8365]
[1756062451571,0.3786,4944.3,4944.2,1.32087217]
[1756062452078,0.7332,4945.0,4944.9,1.2696]
[1756062452266,1.2836,4945.0,4944.9,1.31515094]
[1756062452774,1.2836,4945.0,4944.9,1.30952021]
[1756062453275,1.2836,4945.0,4944.9,1.15562021]
[1756062453676,1.2836,4945.0,4944.9,1.15563596]
[1756062454275,1.0725,4947.5,4947.4,1.2696]
[1756062454575,1.0725,4947.5,4947.4,0.98940956]
[1756062455178,1.0725,4947.5,4947.4,1.2696]
[1756062455379,0.2305,4947.8,4947.4,0.79503548]
[1756062455581,0.3786,4947.8,4947.7,1.2696]
[1756062455881,1.0725,4947.8,4947.7,1.55343548]
[1756062456768,1.01056,4949.0,4947.7,1.55343548]
[1756062456769,0.1,4950.2,4947.8,0.0202]
[1756062456970,0.1,4950.2,4947.0,0.16426128]
[1756062456971,0.70509463,4950.1,4949.0,0.40421]
[1756062457271,0.70509463,4950.1,4948.0,1.01075]
[1756062457272,0.1,4950.2,4949.7,0.40416]
[1756062457478,0.1,4950.2,4948.0,21.22584]
[1756062457479,0.1,4950.2,4950.1,0.7584]
[1756062457673,0.1,4950.2,4950.1,1.06267885]
[1756062458279,0.1,4950.2,4950.1,0.539]
[1756062458280,0.3305,4950.2,4950.1,0.539]
[1756062458484,0.2111,4950.1,4949.5,0.2137]
[1756062458676,0.5698,4949.8,4949.0,0.539]
[1756062458882,0.1,4950.2,4949.3,0.5447]
[1756062459084,0.1,4950.2,4948.1,0.42449]
[1756062459085,0.40418,4949.5,4948.1,0.42449]
[1756062459383,0.2305,4949.4,4949.3,0.7584]
[1756062460686,0.2305,4950.0,4949.4,0.2137]
[1756062460886,0.2305,4950.0,4949.2,0.4042]
[1756062461079,0.40416,4949.8,4949.3,0.2137]
[1756062461284,0.2305,4949.7,4948.9,0.40422]
[1756062461485,0.2305,4949.7,4948.7,0.7584]
[1756062461680,0.2305,4949.7,4948.9,0.2194]
[1756062461681,0.40417,4949.6,4948.9,0.2194]
[1756062461874,0.40417,4949.6,4949.1,0.2137]
[1756062462074,0.2305,4949.5,4949.2,0.5447]
[1756062462286,0.2305,4949.5,4949.4,0.7584]
[1756062462984,0.5698,4949.5,4949.4,0.539]
[1756062463179,0.7809,4949.4,4948.9,0.3253]
[1756062463379,0.61529,4949.3,4948.7,0.3253]
[1756062463578,0.61529,4949.3,4947.3,0.0202]
[1756062463579,0.2305,4949.2,4948.2,0.40428]
[1756062463786,0.2305,4949.2,4948.6,0.3253]
[1756062463988,0.2305,4949.2,4948.7,0.2137]
[1756062464181,0.2305,4949.2,4948.8,0.5447]
[1756062464384,0.2305,4949.2,4948.4,0.40426]
[1756062464584,0.40418,4949.5,4948.2,0.7584]
[1756062464882,0.2305,4949.7,4948.8,1.16265]
[1756062465081,0.40421,4949.3,4948.9,0.5447]
[1756062465284,0.40421,4949.3,4948.6,0.7584]
[1756062465584,0.40424,4949.0,4948.4,0.2194]
[1756062465790,0.3393,4949.0,4948.3,0.539]
[1756062465985,0.5698,4948.6,4947.3,0.2194]
[1756062466188,0.2305,4948.5,4947.6,0.539]
[1756062466384,0.2305,4948.5,4947.7,0.7584]
[1756062466583,0.63481,4948.2,4947.9,0.7584]
[1756062466784,0.63481,4948.2,4947.0,29.30926128]
[1756062466983,0.63481,4948.2,4947.3,0.7584]
[1756062467183,0.40432,4948.1,4947.6,0.40434]
[1756062467682,0.63482,4948.1,4947.6,0.40434]
[1756062467888,0.7809,4948.4,4948.0,0.2137]
[1756062468192,1.18521,4948.1,4948.0,0.2137]
[1756062469386,0.97411,4948.1,4948.0,0.2137]
[1756062469791,0.97411,4948.1,4947.7,0.3253]
[1756062469989,0.74369,4947.2,4947.1,0.3253]
[1756062470183,0.74369,4947.2,4947.1,0.61169674]
[1756062470388,0.40443,4946.6,4946.5,0.2194]
[1756062470595,0.97423,4946.6,4946.5,0.82554731]
[1756062470797,0.97423,4946.6,4946.5,0.539]
[1756062470988,0.63493,4946.6,4946.5,0.7584]
[1756062471189,0.40443,4946.7,4946.5,0.28672898]
[1756062471491,0.40443,4946.7,4946.6,0.7584]
[1756062471691,1.01088,4947.7,4946.7,0.7584]
[1756062471692,0.2305,4947.6,4946.7,0.7584]
[1756062471891,0.63482,4948.0,4947.4,0.40436]
[1756062472093,0.2305,4948.6,4948.1,0.7584]
[1756062472391,0.40429,4948.4,4947.0,0.0202]
[1756062472588,0.2305,4948.6,4947.2,0.0202]
[1756062472794,0.40429,4948.4,4948.1,0.7584]
[1756062473096,0.40429,4948.4,4948.3,0.7584]
[1756062473289,0.40429,4948.4,4948.3,1.04502971]
[1756062473789,0.40427,4948.6,4948.3,0.29440481]
[1756062473993,0.5698,4949.0,4948.7,0.2194]
[1756062474191,0.5698,4949.0,4948.8,0.29445912]
[1756062474388,0.63474,4949.0,4948.9,0.83345912]
[1756062474585,0.40424,4949.0,4948.9,1.05285912]
[1756062475095,0.63474,4949.0,4948.9,1.05285912]
[1756062475394,0.97404,4949.0,4948.9,1.05285912]
[1756062475591,0.2305,4949.0,4948.9,1.05285912]
[1756062475791,0.40423,4949.1,4948.9,0.29445912]
[1756062475984,0.40423,4949.1,4949.0,1.05285912]
[1756062476189,0.63473,4949.1,4949.0,1.05285912]
[1756062477193,1.18513,4949.1,4949.0,0.29445912]
[1756062477494,0.97403,4949.1,4949.0,0.83345912]
[1756062477694,1.19273,4949.1,4949.0,0.29445912]
[1756062478390,5.19273,4949.1,4949.0,0.29445912]
[1756062478590,4.40423,4949.1,4948.9,0.6705]
[1756062478792,0.7917,4949.0,4948.9,0.6705]
[1756062479188,0.573,4949.0,4948.9,1.15649235]
[1756062479495,0.573,4949.0,4948.9,1.48729235]
[1756062479693,0.573,4949.0,4948.9,1.15649235]
[1756062479893,0.7917,4949.0,4948.9,1.15649235]
[1756062480294,0.7917,4949.0,4948.9,1.15666984]
[1756062480492,0.2279,4949.9,4949.2,0.40422]
[1756062480698,0.2279,4949.9,4949.4,0.541]
[1756062480899,0.50414,4950.2,4949.6,0.7599]
[1756062481100,0.50414,4950.2,4949.7,0.27596984]
[1756062481299,0.40415,4950.1,4949.8,0.27596984]
[1756062481596,0.63205,4950.1,4950.0,0.7599]
[1756062481801,0.63205,4950.1,4950.0,0.81696984]
[1756062482000,0.97715,4950.1,4950.0,0.81696984]
[1756062482594,0.97715,4950.1,4950.0,0.81740405]
[1756062482995,0.97715,4950.1,4950.0,1.03630405]
[1756062483194,1.45233674,4950.1,4950.0,1.03630405]
[1756062483597,1.45233674,4950.1,4950.0,0.81740405]
[1756062484105,1.45233987,4950.1,4950.0,0.81740405]
[1756062484801,5.67191481,4950.1,4950.0,0.04460405]
[1756062485005,1.19588,4949.7,4949.6,0.6907]
[1756062485204,1.67194481,4949.7,4949.6,0.6907]
[1756062485396,1.04906481,4949.7,4949.6,0.9009]
[1756062485705,0.40422,4949.3,4948.9,0.6705]
[1756062485904,0.40422,4949.3,4949.2,0.2102]
[1756062486499,0.97722,4949.3,4949.2,0.2102]
[1756062486905,0.97722,4949.3,4949.2,0.541]
[1756062487204,0.97722,4949.3,4949.2,0.2102]
[1756062487508,1.26813496,4949.3,4949.2,0.2102]
[1756062487700,1.04943496,4949.3,4949.2,0.2102]
[1756062487901,1.04943496,4949.3,4949.2,0.7677]
[1756062488403,0.47643496,4949.3,4948.9,0.6705]
[1756062488601,0.40424,4949.0,4948.9,0.6705]
[1756062488804,1.67237496,4949.0,4948.9,0.6705]
[1756062489403,5.67237496,4949.0,4948.9,0.6705]
[1756062489706,1.04943496,4949.0,4948.9,1.4382]
[1756062489896,0.573,4949.6,4948.9,1.4382]
[1756062490104,0.47660387,4949.5,4948.9,0.6705]
[1756062490303,0.47660387,4949.4,4949.2,0.40421]
[1756062490497,0.2187,4950.0,4949.3,0.5575]
[1756062490700,0.47657608,4949.9,4949.5,0.5575]
[1756062491002,0.82167608,4949.8,4949.7,0.4369]
[1756062491205,1.04957608,4949.8,4949.7,0.7677]
[1756062491410,0.47657608,4949.8,4949.7,0.7677]
[1756062491806,0.40415,4950.1,4949.8,0.7677]
[1756062492109,0.47652235,4950.0,4949.9,0.7677]
[1756062492497,0.1,4950.2,4950.1,0.7677]
[1756062494303,0.573,4951.5,4950.4,0.2267]
[1756062494509,0.47603566,4951.4,4951.2,0.3308]
[1756062494709,0.40398,4952.2,4951.3,0.40405]
[1756062494913,0.47594245,4952.1,4951.4,0.40403]
[1756062495108,0.47594245,4952.0,4951.6,0.40402]
[1756062495309,0.40397,4952.4,4951.5,0.7677]
[1756062495504,0.47548556,4952.3,4952.0,0.2267]
[1756062495704,0.40394,4952.7,4951.7,0.40401]
[1756062495907,0.573,4953.2,4952.3,0.84086]
[1756062496215,0.47261898,4953.1,4952.4,0.7677]
[1756062496510,0.40387,4953.5,4952.8,0.541]
[1756062496712,0.47205237,4953.4,4953.0,0.541]
[1756062496911,0.0201,4954.8,4951.7,19.01]
[1756062496912,0.2279,4955.0,4953.4,0.2267]
[1756062497108,0.4038,4954.4,4953.7,0.5575]
[1756062497415,0.7917,4953.2,4952.4,0.2267]
[1756062497609,0.40392,4952.9,4952.4,0.2267]
[1756062497806,0.40392,4952.9,4952.3,0.3308]
[1756062497807,0.4039,4953.1,4951.9,0.7677]
[1756062498008,0.4039,4953.1,4951.7,0.40401]
[1756062498210,0.2187,4953.3,4952.2,0.541]
[1756062498408,49.29499,4955.2,4952.6,0.2102]
[1756062498409,0.62255,4953.8,4952.6,0.2102]
[1756062498613,0.40387,4953.6,4952.7,0.3308]
[1756062498812,0.2187,4954.8,4953.1,0.0201]
[1756062499010,0.573,4955.1,4953.9,0.40383]
[1756062499315,0.40373,4955.2,4953.9,0.7677]
[1756062499516,0.62243,4955.3,4954.0,0.40383]
[1756062499706,0.2187,4955.3,4954.2,0.61401]
[1756062499912,0.2187,4955.0,4953.8,0.541]
[1756062500105,0.62249,4954.5,4953.8,0.7677]
[1756062500307,0.2187,4953.6,4953.0,0.5575]
[1756062500711,0.0201,4954.5,4952.2,0.40397]
[1756062500712,0.2187,4953.0,4952.2,0.40397]
[1756062500913,0.4039,4953.1,4952.1,0.541]
[1756062501111,0.40392,4952.9,4952.0,0.7677]
[1756062501313,0.40392,4952.9,4951.8,0.40401]
[1756062501615,0.40392,4952.9,4951.4,0.5714]
[1756062501616,0.40392,4952.9,4952.1,0.7677]
[1756062501816,0.4039,4953.2,4952.1,0.7677]
[1756062502116,0.40391,4953.0,4952.0,0.40399]
[1756062502317,0.40393,4952.8,4952.0,0.40399]
[1756062502619,0.40393,4952.8,4952.6,0.7677]
[1756062502816,0.40393,4952.8,4951.9,0.404]
[1756062503115,0.40398,4952.2,4951.6,0.7677]
[1756062503315,0.40398,4952.1,4951.6,0.2102]
[1756062503518,0.573,4952.8,4951.6,0.7677]
[1756062503818,0.40396,4952.5,4951.8,0.5575]
[1756062504018,0.40396,4952.5,4951.9,0.2102]
[1756062504214,0.97693,4952.8,4951.8,0.7677]
[1756062504415,0.40393,4952.8,4952.1,0.5575]
[1756062504615,0.2187,4953.0,4952.0,0.2102]
[1756062504813,0.7917,4951.5,4951.4,0.5714]
[1756062505818,1.23803,4951.3,4950.2,0.2102]
[1756062506018,0.0201,4951.6,4949.9,0.3308]
[1756062506218,0.573,4950.0,4948.8,0.7729]
[1756062506417,0.573,4950.0,4949.2,0.5575]
[1756062506724,0.40413,4950.3,4950.0,0.2102]
[1756062507015,0.573,4950.2,4950.1,0.541]
[1756062507221,1.00988,4952.6,4950.2,0.40413]
[1756062507418,0.40411,4950.6,4950.4,0.2102]
[1756062507624,1.03013,4951.8,4949.8,0.2102]
[1756062507825,0.73814,4950.2,4949.9,0.221]
[1756062508123,0.5452,4950.1,4950.0,0.221]
[1756062508822,0.40417,4949.9,4949.3,0.5618]
[1756062509023,1.01014,4951.3,4949.3,0.5618]
[1756062509024,0.5452,4949.5,4949.4,0.221]
[1756062509219,0.4042,4949.4,4949.3,0.5618]
[1756062509425,0.5452,4949.4,4949.2,0.3234]
[1756062509619,0.40424,4948.9,4948.8,0.7729]
[1756062509821,0.40424,4948.9,4948.8,0.9939]
[1756062509822,0.94944,4948.9,4948.8,0.9939]
[1756062510031,0.73828,4948.5,4948.3,0.221]
[1756062510235,0.2112,4949.8,4948.3,0.444]
[1756062510537,0.5452,4950.2,4949.6,0.221]
[1756062510732,0.0201,4951.6,4949.6,0.221]
[1756062510733,0.9493,4950.7,4949.8,0.5598]
[1756062511032,0.5452,4950.7,4950.0,0.5598]
[1756062511334,0.40411,4950.6,4950.0,0.3388]
[1756062511535,0.63391,4950.6,4950.1,0.8296]
[1756062511731,0.5452,4950.3,4950.1,0.8296]
[1756062511935,0.5452,4950.3,4950.2,0.3388]
[1756062512235,0.5452,4950.3,4950.2,0.221]
[1756062512638,0.94933,4950.3,4950.2,0.221]
[1756062513540,0.775,4950.2,4950.1,0.8296]
[1756062513928,0.5452,4950.2,4950.1,1.0506]
[1756062514127,0.9493,4950.7,4950.1,1.6124]
[1756062514338,0.5452,4950.7,4950.1,1.6124]
[1756062514535,0.40411,4950.6,4950.1,1.6124]
[1756062514728,0.40411,4950.6,4950.1,1.0526]
[1756062514932,0.5452,4950.4,4950.3,0.221]
[1756062515635,0.2298,4950.3,4950.1,0.8296]
[1756062515832,0.775,4950.2,4950.1,0.8296]
[1756062516334,0.775,4950.0,4949.9,1.6254]
[1756062516739,0.4042,4949.5,4949.1,0.221]
[1756062516935,0.40421,4949.4,4948.8,0.5618]
[1756062517135,0.334,4949.7,4949.1,0.221]
[1756062517337,0.334,4949.7,4949.2,0.62521]
[1756062517640,0.94938,4949.7,4949.2,0.40421]
[1756062517841,0.61539,4949.6,4949.0,0.40423]
[1756062518041,0.5452,4949.6,4949.4,0.5618]
[1756062518244,0.5452,4949.6,4949.5,0.221]
[1756062518744,0.40419,4949.5,4949.0,0.221]
[1756062518937,0.40419,4949.5,4948.9,0.40424]
[1756062519245,0.5452,4949.3,4949.2,0.7828]
[1756062520640,0.40422,4949.3,4949.1,0.7129]
[1756062520839,0.775,4949.2,4949.1,0.7129]
[1756062522240,0.40419,4949.6,4949.2,0.221]
[1756062522440,0.2112,4949.5,4949.3,0.223]
[1756062522640,0.5452,4949.5,4949.4,0.5598]
[1756062523042,0.5452,4949.5,4949.4,0.7828]
[1756062523236,1.01026,4950.7,4949.2,0.40422]
[1756062523237,0.2112,4949.8,4949.2,0.7828]
[1756062523439,0.94938,4949.7,4949.3,0.7828]
[1756062523739,0.5452,4949.6,4949.3,0.96601]
[1756062523941,0.40418,4949.7,4949.3,0.96601]
[1756062524141,0.5452,4949.5,4949.3,0.62721]
[1756062524439,0.5452,4949.5,4949.4,0.3388]
[1756062524640,0.5452,4949.5,4949.4,0.7828]
[1756062525145,0.5452,4949.5,4949.4,0.5598]
[1756062525338,0.775,4949.5,4949.4,0.221]
[1756062525533,0.40421,4949.4,4949.1,0.7129]
[1756062525738,0.334,4949.4,4949.3,0.221]
[1756062525938,0.5452,4949.4,4949.3,0.5598]
[1756062526244,0.2112,4950.1,4949.3,0.223]
[1756062526440,0.2112,4950.1,4949.6,0.3388]
[1756062526641,0.2112,4950.1,4949.9,0.7828]
[1756062526943,0.2112,4950.1,4950.0,0.7828]
[1756062527447,0.4041,4950.7,4950.3,0.7828]
[1756062527740,0.2112,4950.8,4950.3,0.40413]
[1756062527941,0.2112,4950.8,4950.4,0.3388]
[1756062528239,0.2112,4950.8,4950.6,0.221]
[1756062528240,0.5452,4950.7,4950.6,0.221]
[1756062528444,0.40413,4950.3,4950.0,0.7828]
[1756062528648,0.5452,4950.2,4950.1,0.221]
[1756062528843,1.0101,4951.5,4950.2,0.223]
[1756062528844,0.441,4951.4,4950.2,0.223]
[1756062529147,0.40409,4950.9,4950.5,0.221]
[1756062529350,0.2112,4951.1,4951.0,0.40407]
[1756062529546,0.94925,4951.3,4951.2,0.3388]
[1756062529847,0.5452,4951.0,4950.9,0.5618]
[1756062530049,0.5452,4951.0,4950.9,0.83120058]
[1756062530251,0.5452,4951.0,4950.9,0.49040058]
[1756062530549,0.5452,4951.0,4950.9,0.49066818]
[1756062531550,0.5452,4951.0,4950.9,0.82946818]
[1756062532649,0.5452,4951.0,4950.9,0.82983752]
[1756062533053,0.5452,4951.0,4950.9,0.5598]
[1756062533349,0.5452,4951.0,4950.9,0.82456802]
[1756062534344,0.5452,4951.0,4950.9,0.48576802]
[1756062534738,0.5452,4951.0,4950.9,0.27004381]
[1756062534939,0.775,4951.0,4950.9,0.27004381]
[1756062535740,1.7852,4951.0,4950.2,0.221]
[1756062536050,0.61533,4950.3,4950.2,0.7828]
[1756062536245,0.94933,4950.3,4950.2,1.04383913]
[1756062536444,0.94933,4950.3,4950.2,0.26103913]
[1756062536646,1.17913,4950.3,4950.2,0.26103913]
[1756062536851,0.40417,4949.8,4949.7,0.221]
[1756062537045,0.94937,4949.8,4949.7,0.48212683]
[1756062537245,1.17917,4949.8,4949.7,0.48212683]
[1756062537445,1.17917,4949.8,4949.7,0.26112683]
[1756062538752,0.40416,4949.9,4949.8,0.5621]
[1756062538956,0.40416,4949.9,4949.8,1.05212683]
[1756062539749,0.63366,4949.9,4949.8,1.05212683]
[1756062539950,0.40415,4950.1,4949.8,1.05212683]
[1756062540152,0.40415,4950.1,4950.0,0.791]
[1756062540348,0.5693,4950.6,4950.2,0.5621]
[1756062540546,0.5693,4950.6,4949.7,0.0202]
[1756062540547,0.40412,4950.5,4950.4,0.791]
[1756062540749,0.4041,4950.8,4950.5,0.791]
[1756062540951,0.4041,4950.8,4950.7,0.4468]
[1756062541147,0.4041,4950.8,4950.7,1.05212683]
[1756062541657,0.4041,4950.8,4950.7,1.05198297]
[1756062542154,0.40409,4950.9,4950.8,0.791]
[1756062542355,0.40409,4950.9,4950.8,1.05198699]
[1756062542952,0.63359,4950.9,4950.8,1.05198699]
[1756062543756,0.40409,4950.9,4950.8,1.05198699]
[1756062544454,0.4041,4950.7,4950.6,0.5392]
[1756062544660,1.1905,4950.7,4950.6,0.5392]
[1756062545159,5.1905,4950.7,4950.6,0.5392]
[1756062546060,24.72807943,4950.7,4950.6,0.5392]
[1756062546757,0.4171,4949.2,4949.1,0.7129]
[1756062546964,0.4222,4949.2,4949.1,0.7129]
[1756062547559,4.90676063,4949.2,4949.1,0.7129]
[1756062547864,0.075,4949.0,4948.9,0.7751]
[1756062548363,0.5593626,4949.0,4948.9,0.7751]
[1756062548559,4.5593626,4949.0,4948.9,0.7751]
[1756062548769,4.5593626,4949.0,4948.9,0.22329]
[1756062549066,0.40433,4947.9,4947.8,0.2179]
[1756062549364,20.05358,4949.1,4947.4,0.791]
[1756062549553,0.48405628,4949.0,4947.6,0.791]
[1756062549757,0.40431,4948.1,4947.6,0.791]
[1756062549958,0.40431,4948.1,4947.6,0.5731]
[1756062550159,0.40431,4948.1,4947.7,0.791]
[1756062550357,0.40431,4948.1,4947.6,0.574]
[1756062550662,0.4043,4948.3,4947.6,0.97835]
[1756062550969,1.01036,4950.2,4948.7,0.791]
[1756062551160,0.40421,4949.3,4948.8,0.791]
[1756062551355,1.01038,4950.1,4948.7,0.791]
[1756062551560,0.40423,4949.1,4948.4,0.40428]
[1756062551761,0.40421,4949.3,4948.1,0.0202]
[1756062551962,0.40423,4949.1,4948.5,0.40427]
[1756062552364,0.40423,4949.1,4948.3,0.40429]
[1756062552663,0.40423,4949.1,4948.4,1.07758]
[1756062552864,0.1725,4950.4,4949.7,0.3442]
[1756062553064,0.1725,4950.4,4949.8,0.791]
[1756062553268,0.1725,4950.6,4950.0,0.791]
[1756062553466,0.40414,4950.3,4950.1,0.3442]
[1756062553666,0.40414,4950.3,4949.7,0.791]
[1756062553863,0.40413,4950.3,4949.3,0.791]
[1756062554068,0.40412,4950.5,4949.7,0.40418]
[1756062554264,0.1725,4950.6,4949.9,0.791]
[1756062554869,0.2171,4950.7,4949.9,0.791]
[1756062554870,0.4041,4950.7,4950.2,0.791]
[1756062555063,0.4041,4950.7,4950.4,0.2289]
[1756062555367,0.4041,4950.7,4950.3,0.791]
[1756062555565,0.40408,4950.9,4950.5,0.791]
[1756062555765,0.40406,4951.2,4950.7,0.2289]
[1756062555967,0.1725,4951.4,4950.8,0.791]
[1756062555968,0.40407,4951.1,4950.8,0.791]
[1756062556168,0.40407,4951.1,4950.7,0.2289]
[1756062556368,0.40408,4951.0,4950.9,0.2179]
[1756062556571,0.40408,4951.0,4950.9,0.791]
[1756062556867,0.1725,4950.6,4950.5,0.4468]
[1756062557072,0.3896,4950.6,4950.5,0.4468]
[1756062557273,0.1725,4950.6,4950.5,0.4468]
[1756062557476,0.1725,4950.6,4950.5,0.791]
[1756062557668,0.1725,4950.6,4950.5,0.4468]
[1756062558171,0.1725,4950.6,4950.5,0.791]
[1756062559576,0.4041,4950.7,4950.6,0.791]
[1756062559974,0.5766,4950.7,4950.6,0.791]
[1756062560172,1.01007,4951.6,4950.6,0.791]
[1756062560377,0.1725,4951.2,4950.6,0.791]
[1756062560573,0.1725,4951.2,4950.2,0.40413]
[1756062560574,0.1725,4951.2,4950.0,0.40415]
[1756062560876,0.40412,4950.5,4950.0,0.40415]
[1756062561081,0.40412,4950.5,4950.4,0.791]
[1756062561281,0.40416,4950.0,4949.8,0.3442]
[1756062561479,0.57666,4950.0,4949.9,0.791]
[1756062562176,0.40419,4949.5,4949.4,0.791]
[1756062563480,0.57669,4949.5,4949.4,0.791]
[1756062563882,0.40419,4949.5,4949.4,0.791]
[1756062564277,0.57669,4949.5,4949.4,0.791]
[1756062564681,0.1725,4949.5,4949.4,0.791]
[1756062564879,0.40416,4949.9,4949.3,0.791]
[1756062565082,0.40416,4950.0,4949.5,0.791]
[1756062565279,0.40416,4950.0,4948.4,0.6733]
[1756062565280,0.1725,4950.5,4949.7,0.2179]
[1756062565475,0.57668,4949.8,4949.7,0.791]
[1756062565982,0.40418,4949.8,4949.7,0.791]
[1756062566177,0.1725,4950.3,4949.7,0.791]
[1756062566178,0.40416,4950.0,4949.7,0.791]
[1756062566385,0.40416,4950.0,4949.5,0.791]
[1756062566582,0.40416,4950.0,4949.4,0.4042]
[1756062566781,0.40416,4950.0,4949.6,0.3442]
[1756062566977,0.40416,4950.0,4949.7,0.2289]
[1756062567184,0.40417,4949.9,4949.3,0.791]
[1756062567381,0.40418,4949.8,4949.1,0.40422]
[1756062567582,0.40418,4949.8,4949.6,0.5471]
[1756062567778,0.40416,4950.0,4949.7,0.2304]
[1756062567992,0.57696,4950.0,4949.9,0.7775]
[1756062568283,0.72046,4950.0,4949.9,1.2789]
[1756062568589,0.1435,4950.0,4949.9,1.2789]
[1756062568778,0.40414,4950.2,4949.9,1.2789]
[1756062568982,0.40414,4950.2,4950.1,0.5014]
[1756062569178,0.57692,4950.4,4950.1,0.5014]
[1756062569384,0.40412,4950.4,4950.3,1.2789]
[1756062569579,0.40409,4950.8,4950.7,1.0647]
[1756062569785,0.72037,4951.1,4951.0,0.1447]
[1756062569985,0.72037,4951.1,4951.0,1.2789]
[1756062570182,0.3896,4951.6,4950.6,0.4041]
[1756062570383,0.2168,4951.6,4950.6,0.4041]
[1756062570587,0.40406,4951.2,4950.6,0.4041]
[1756062571188,0.40407,4951.1,4950.8,0.7775]
[1756062571390,0.40407,4951.1,4950.6,0.4041]
[1756062571590,0.40407,4951.1,4950.7,0.7775]
[1756062571791,0.40407,4951.1,4950.8,0.7775]
[1756062571985,0.40406,4951.2,4950.6,0.4041]
[1756062572190,0.40407,4951.1,4950.8,0.7775]
[1756062572490,0.40407,4951.1,4951.0,0.7775]
[1756062573189,0.3895,4952.5,4950.2,0.0202]
[1756062573394,0.5259,4952.3,4952.2,0.5014]
[1756062573580,0.1435,4952.3,4952.2,1.2789]
[1756062573891,0.1727,4952.6,4952.5,0.5014]
[1756062574085,0.1727,4952.6,4952.5,1.2789]
[1756062574297,0.1727,4953.1,4952.5,0.8343]
[1756062574492,0.3162,4953.1,4953.0,0.5014]
[1756062574688,0.1727,4953.6,4952.7,0.7775]
[1756062574999,19.026,4954.9,4953.2,0.2142]
[1756062575187,0.2168,4954.7,4953.3,0.3329]
[1756062575386,0.1727,4954.6,4953.5,0.4446]
[1756062575580,0.1727,4954.6,4953.6,0.4446]
[1756062575782,0.1727,4954.6,4952.8,0.17849412]
[1756062575983,0.1727,4954.6,4953.0,1.00977]
[1756062576187,0.1727,4954.6,4952.9,0.7775]
[1756062576188,0.57648,4954.6,4952.9,0.7775]
[1756062576389,0.57648,4954.6,4952.8,0.17849412]
[1756062576390,0.57648,4954.6,4953.5,0.40386]
[1756062576890,0.1727,4954.6,4954.1,0.2304]
[1756062577096,0.1727,4954.6,4954.3,0.3329]
[1756062577300,0.1727,4954.9,4954.7,0.7775]
[1756062577492,0.1727,4954.8,4954.7,0.5633]
[1756062577693,0.40375,4955.1,4954.1,0.2304]
[1756062577895,0.57645,4955.1,4954.2,0.3329]
[1756062578197,0.57645,4955.1,4954.4,0.7775]
[1756062578198,0.1727,4955.1,4954.4,0.7775]
[1756062578400,0.57644,4955.1,4954.6,0.4446]
[1756062578601,0.1727,4955.0,4954.1,0.40381]
[1756062578895,0.1727,4955.0,4953.2,1.00973]
[1756062578896,0.1727,4955.6,4954.6,0.3329]
[1756062579097,19.076,4956.4,4953.2,0.0201]
[1756062579290,0.40365,4956.2,4955.1,0.40373]
[1756062579602,0.1727,4956.5,4955.2,0.7775]
[1756062579603,0.1727,4955.3,4955.2,0.7775]
[1756062579890,0.1727,4955.3,4955.2,0.4446]
[1756062580393,0.1727,4956.5,4954.8,0.4446]
[1756062580597,0.40365,4956.2,4955.1,0.40373]